[Event "Late-Titled-Tuesday-Blitz-February-27-2024"]
[Site "Chess.com"]
[Date "2024.02.27"]
[Round "9"]
[White "sergiochess83"]
[Black "Ar4uha"]
[Result "1-0"]
[WhiteElo "2897"]
[BlackElo "2608"]
[TimeControl "180+1"]
[EndTime "15:44:48 PST"]
[Termination "sergiochess83 won by resignation"]

1. e4 {[%clk 0:02:56.1]} 1... d5 {[%clk 0:02:59]} 2. exd5 {[%clk 0:02:51.1]}
2... Nf6 {[%clk 0:02:58.6]} 3. Nf3 {[%clk 0:02:48.3]} 3... Nxd5 {[%clk
0:02:56.5]} 4. d4 {[%clk 0:02:48.4]} 4... g6 {[%clk 0:02:56.3]} 5. Bc4 {[%clk
0:02:44.5]} 5... Bg7 {[%clk 0:02:56.1]} 6. h3 {[%clk 0:02:45]} 6... O-O {[%clk
0:02:56.5]} 7. O-O {[%clk 0:02:45.1]} 7... b6 {[%clk 0:02:44.6]} 8. Re1 {[%clk
0:02:43.4]} 8... Bb7 {[%clk 0:02:44.5]} 9. Bb3 {[%clk 0:02:37.1]} 9... Nd7
{[%clk 0:02:35.6]} 10. Bg5 {[%clk 0:02:29.8]} 10... N7f6 {[%clk 0:02:34.2]} 11.
Qd2 {[%clk 0:02:13.6]} 11... Re8 {[%clk 0:02:24.9]} 12. c4 {[%clk 0:02:10.9]}
12... Nb4 {[%clk 0:02:20.5]} 13. Qxb4 {[%clk 0:02:09.3]} 13... Bxf3 {[%clk
0:02:21.2]} 14. gxf3 {[%clk 0:02:09]} 14... Qxd4 {[%clk 0:02:21.9]} 15. Qd2
{[%clk 0:01:47.2]} 15... Qc5 {[%clk 0:02:20.9]} 16. Nc3 {[%clk 0:01:36.4]} 16...
Rad8 {[%clk 0:02:18.2]} 17. Qe3 {[%clk 0:01:28.3]} 17... Qf5 {[%clk 0:02:12.3]}
18. Ba4 {[%clk 0:01:24.3]} 18... Rf8 {[%clk 0:02:01.3]} 19. Kg2 {[%clk 0:01:01]}
19... Rd3 {[%clk 0:01:59.4]} 20. Qf4 {[%clk 0:00:57.9]} 20... Qa5 {[%clk
0:01:59.9]} 21. Bxf6 {[%clk 0:00:46.8]} 21... Bxf6 {[%clk 0:01:57.3]} 22. Bc2
{[%clk 0:00:41.3]} 22... Rd4 {[%clk 0:01:53]} 23. Ne4 {[%clk 0:00:35.3]} 23...
Bg7 {[%clk 0:01:47.7]} 24. Qxc7 {[%clk 0:00:35.4]} 24... e6 {[%clk 0:01:40.2]}
25. Bb3 {[%clk 0:00:30.8]} 25... Be5 {[%clk 0:01:34.8]} 26. Qe7 {[%clk
0:00:25.7]} 26... Bb8 {[%clk 0:00:46.8]} 27. Nf6+ {[%clk 0:00:12.4]} 27... Kg7
{[%clk 0:00:46.5]} 28. Nd7 {[%clk 0:00:12.2]} 28... Rxd7 {[%clk 0:00:18.8]} 29.
Qxd7 {[%clk 0:00:13.1]} 29... Qg5+ {[%clk 0:00:19.3]} 30. Kf1 {[%clk 0:00:13.2]}
30... Qh4 {[%clk 0:00:20.1]} 31. Ke2 {[%clk 0:00:10.3]} 31... Qxh3 {[%clk
0:00:20]} 32. Qd4+ {[%clk 0:00:09.8]} 32... Kg8 {[%clk 0:00:20.2]} 33. Bc2
{[%clk 0:00:07.3]} 33... Qh5 {[%clk 0:00:19.1]} 34. Rh1 {[%clk 0:00:06.7]} 34...
Qa5 {[%clk 0:00:19]} 35. Bb3 {[%clk 0:00:05.3]} 35... Be5 {[%clk 0:00:16.9]} 36.
Qd2 {[%clk 0:00:05.6]} 36... Qc5 {[%clk 0:00:16.2]} 37. Qh6 {[%clk 0:00:05.6]}
37... Rd8 {[%clk 0:00:12.8]} 38. Qxh7+ {[%clk 0:00:06]} 38... Kf8 {[%clk
0:00:13.6]} 39. Rad1 {[%clk 0:00:06]} 39... Bd4 {[%clk 0:00:13.8]} 40. Qh6+
{[%clk 0:00:04.8]} 40... Ke7 {[%clk 0:00:14.1]} 41. Qh4+ {[%clk 0:00:05]} 41...
Bf6 {[%clk 0:00:14.3]} 42. Qe4 {[%clk 0:00:04]} 42... Bd4 {[%clk 0:00:13.4]} 43.
Rd3 {[%clk 0:00:03.9]} 43... Rd6 {[%clk 0:00:12.8]} 44. Rhd1 {[%clk 0:00:03.5]}
44... e5 {[%clk 0:00:13.5]} 45. f4 {[%clk 0:00:04.1]} 45... f5 {[%clk
0:00:13.1]} 46. Qg2 {[%clk 0:00:03.5]} 46... e4 {[%clk 0:00:13.1]} 47. Rxd4
{[%clk 0:00:04.1]} 47... Rxd4 {[%clk 0:00:13.6]} 48. Qg5+ {[%clk 0:00:04.9]}
48... Kf7 {[%clk 0:00:13.2]} 49. Rxd4 {[%clk 0:00:04.5]} 49... Qxd4 {[%clk
0:00:14.1]} 50. c5+ {[%clk 0:00:05.3]} 50... Kg7 {[%clk 0:00:12.8]} 51. Qe7+
{[%clk 0:00:05.2]} 51... Kh6 {[%clk 0:00:13.5]} 52. Qh4+ {[%clk 0:00:05]} 52...
Kg7 {[%clk 0:00:14]} 53. Qe7+ {[%clk 0:00:05.2]} 53... Kh6 {[%clk 0:00:14.6]}
54. Qf8+ {[%clk 0:00:05.5]} 54... Kh5 {[%clk 0:00:15.3]} 55. Qh8+ {[%clk
0:00:05.1]} 55... Kg4 {[%clk 0:00:16]} 56. Qxd4 {[%clk 0:00:05.2]} 1-0

[Event "Late-Titled-Tuesday-Blitz-February-27-2024"]
[Site "Chess.com"]
[Date "2024.02.27"]
[Round "9"]
[White "bazar-wokzal"]
[Black "janhelmer03"]
[Result "1/2-1/2"]
[WhiteElo "2611"]
[BlackElo "2403"]
[TimeControl "180+1"]
[EndTime "15:44:49 PST"]
[Termination "Game drawn by stalemate"]

1. e4 {[%clk 0:03:00.9]} 1... c5 {[%clk 0:02:52.9]} 2. c3 {[%clk 0:03:00.6]}
2... Nf6 {[%clk 0:02:49.1]} 3. e5 {[%clk 0:03:01]} 3... Nd5 {[%clk 0:02:49.1]}
4. d4 {[%clk 0:03:01.7]} 4... cxd4 {[%clk 0:02:49.4]} 5. cxd4 {[%clk 0:03:02.5]}
5... d6 {[%clk 0:02:49.4]} 6. Bc4 {[%clk 0:03:02.4]} 6... dxe5 {[%clk
0:02:49.5]} 7. dxe5 {[%clk 0:03:02.4]} 7... Be6 {[%clk 0:02:47.6]} 8. Nc3 {[%clk
0:02:58]} 8... Nxc3 {[%clk 0:02:45.7]} 9. Qxd8+ {[%clk 0:02:57.8]} 9... Kxd8
{[%clk 0:02:45.4]} 10. Bxe6 {[%clk 0:02:57.4]} 10... fxe6 {[%clk 0:02:45.5]} 11.
bxc3 {[%clk 0:02:57.2]} 11... Nc6 {[%clk 0:02:46.4]} 12. Nf3 {[%clk 0:02:55.6]}
12... g6 {[%clk 0:02:13.5]} 13. Bf4 {[%clk 0:02:53.5]} 13... h6 {[%clk
0:02:12.8]} 14. h4 {[%clk 0:02:52.2]} 14... Bg7 {[%clk 0:02:12.8]} 15. O-O
{[%clk 0:02:49.9]} 15... Rf8 {[%clk 0:02:12.5]} 16. Bg3 {[%clk 0:02:49.4]} 16...
Kc7 {[%clk 0:02:07.2]} 17. Rfd1 {[%clk 0:02:42.5]} 17... Rad8 {[%clk 0:02:06.3]}
18. Nd4 {[%clk 0:02:40.6]} 18... Nxd4 {[%clk 0:02:04.7]} 19. cxd4 {[%clk
0:02:35.7]} 19... Rd5 {[%clk 0:02:01.3]} 20. f3 {[%clk 0:02:26.6]} 20... Kb8
{[%clk 0:01:53.5]} 21. Bf2 {[%clk 0:02:21.9]} 21... Rfd8 {[%clk 0:01:53.7]} 22.
Rdc1 {[%clk 0:02:13.3]} 22... Rb5 {[%clk 0:01:50.3]} 23. Rc2 {[%clk 0:02:11.6]}
23... Rc8 {[%clk 0:01:48.8]} 24. Rac1 {[%clk 0:02:07.2]} 24... Rxc2 {[%clk
0:01:47.8]} 25. Rxc2 {[%clk 0:02:08.1]} 25... h5 {[%clk 0:01:43.4]} 26. Be3
{[%clk 0:02:07]} 26... Rd5 {[%clk 0:01:36.4]} 27. g4 {[%clk 0:01:59.9]} 27... b5
{[%clk 0:01:34.8]} 28. gxh5 {[%clk 0:01:55.8]} 28... gxh5 {[%clk 0:01:35.7]} 29.
Rg2 {[%clk 0:01:55.4]} 29... Bf8 {[%clk 0:01:06.2]} 30. Rg8 {[%clk 0:01:51.1]}
30... Rd8 {[%clk 0:01:06.2]} 31. Rg6 {[%clk 0:01:39.6]} 31... Kb7 {[%clk
0:01:00.8]} 32. Rxe6 {[%clk 0:01:39.3]} 32... a5 {[%clk 0:01:00.3]} 33. Kf2
{[%clk 0:01:39.4]} 33... b4 {[%clk 0:01:00.5]} 34. Ke2 {[%clk 0:01:35.2]} 34...
a4 {[%clk 0:01:00.6]} 35. Kd3 {[%clk 0:01:32.3]} 35... Ra8 {[%clk 0:01:00.5]}
36. d5 {[%clk 0:01:22.7]} 36... b3 {[%clk 0:00:59.4]} 37. a3 {[%clk 0:01:18.9]}
37... Ra6 {[%clk 0:00:56.2]} 38. Rxa6 {[%clk 0:01:11.9]} 38... Kxa6 {[%clk
0:00:57.1]} 39. f4 {[%clk 0:01:12.3]} 39... e6 {[%clk 0:00:53]} 40. d6 {[%clk
0:01:11.8]} 40... Kb7 {[%clk 0:00:52.8]} 41. Bc1 {[%clk 0:01:08.9]} 41... Kc6
{[%clk 0:00:52.2]} 42. Kc4 {[%clk 0:01:08.8]} 42... Bh6 {[%clk 0:00:50.7]} 43.
Kc3 {[%clk 0:01:00.2]} 43... Kd7 {[%clk 0:00:50.2]} 44. Be3 {[%clk 0:00:53.9]}
44... Kc6 {[%clk 0:00:38.8]} 45. Kd3 {[%clk 0:00:52.5]} 45... Kd7 {[%clk
0:00:32.8]} 46. Bc1 {[%clk 0:00:52.5]} 46... Kc6 {[%clk 0:00:27.8]} 47. Ke4
{[%clk 0:00:51.8]} 47... Kd7 {[%clk 0:00:24.2]} 48. Bb2 {[%clk 0:00:52]} 48...
Kc6 {[%clk 0:00:14.4]} 49. f5 {[%clk 0:00:52.4]} 49... exf5+ {[%clk 0:00:13.8]}
50. Kxf5 {[%clk 0:00:52.3]} 50... Be3 {[%clk 0:00:05.2]} 51. Ke6 {[%clk
0:00:49.4]} 51... Bf2 {[%clk 0:00:05.6]} 52. Kf5 {[%clk 0:00:40.8]} 52... Bxh4
{[%clk 0:00:06.1]} 53. Kg6 {[%clk 0:00:40.9]} 53... Bf2 {[%clk 0:00:04.6]} 54.
Kxh5 {[%clk 0:00:40.9]} 54... Bc5 {[%clk 0:00:05.3]} 55. Kg6 {[%clk 0:00:39.9]}
55... Bxd6 {[%clk 0:00:05.2]} 56. exd6 {[%clk 0:00:39]} 56... Kxd6 {[%clk
0:00:06.1]} 57. Kf5 {[%clk 0:00:39.4]} 57... Kd5 {[%clk 0:00:06.9]} 58. Kf4
{[%clk 0:00:38.8]} 58... Kc4 {[%clk 0:00:06.3]} 59. Ke4 {[%clk 0:00:39]} 59...
Kb5 {[%clk 0:00:06.7]} 60. Kd5 {[%clk 0:00:39.2]} 60... Ka6 {[%clk 0:00:07.6]}
61. Kc4 {[%clk 0:00:39.2]} 61... Kb7 {[%clk 0:00:08.5]} 62. Kb4 {[%clk
0:00:39.2]} 62... Ka8 {[%clk 0:00:09.4]} 63. Kxa4 {[%clk 0:00:39.3]} 63... Kb8
{[%clk 0:00:10.3]} 64. Kb5 {[%clk 0:00:39.6]} 64... Ka8 {[%clk 0:00:11.2]} 65.
a4 {[%clk 0:00:40]} 65... Kb8 {[%clk 0:00:12.1]} 66. a5 {[%clk 0:00:40.6]} 66...
Ka8 {[%clk 0:00:12.6]} 67. Ka6 {[%clk 0:00:41.1]} 67... Kb8 {[%clk 0:00:12.3]}
68. Kb6 {[%clk 0:00:40.1]} 68... Ka8 {[%clk 0:00:12.3]} 69. Kb5 {[%clk
0:00:40.4]} 69... Kb7 {[%clk 0:00:12.1]} 70. Bd4 {[%clk 0:00:39.1]} 70... b2
{[%clk 0:00:11.6]} 71. Bxb2 {[%clk 0:00:39.4]} 71... Ka8 {[%clk 0:00:11.8]} 72.
Ka6 {[%clk 0:00:39.4]} 72... Kb8 {[%clk 0:00:12.7]} 73. Bc1 {[%clk 0:00:39.7]}
73... Ka8 {[%clk 0:00:13.6]} 74. Be3 {[%clk 0:00:40.1]} 74... Kb8 {[%clk
0:00:14.5]} 75. Ba7+ {[%clk 0:00:40.4]} 75... Ka8 {[%clk 0:00:15.4]} 76. Kb6
{[%clk 0:00:40.5]} 1/2-1/2

[Event "Late-Titled-Tuesday-Blitz-February-27-2024"]
[Site "Chess.com"]
[Date "2024.02.27"]
[Round "9"]
[White "DryCounty"]
[Black "Sjakkerntobi"]
[Result "0-1"]
[WhiteElo "2637"]
[BlackElo "2467"]
[TimeControl "180+1"]
[EndTime "15:44:51 PST"]
[Termination "Sjakkerntobi won on time"]

1. e4 {[%clk 0:02:58.6]} 1... e6 {[%clk 0:03:00.1]} 2. d4 {[%clk 0:02:58]} 2...
d5 {[%clk 0:03:00.8]} 3. exd5 {[%clk 0:02:58]} 3... exd5 {[%clk 0:03:01.7]} 4.
Nf3 {[%clk 0:02:57.9]} 4... Nf6 {[%clk 0:03:02.6]} 5. Bd3 {[%clk 0:02:57.4]}
5... c5 {[%clk 0:03:03.1]} 6. dxc5 {[%clk 0:02:57.1]} 6... Bxc5 {[%clk 0:03:04]}
7. O-O {[%clk 0:02:56.9]} 7... O-O {[%clk 0:03:04.8]} 8. Nc3 {[%clk 0:02:56.4]}
8... Nc6 {[%clk 0:03:05.4]} 9. h3 {[%clk 0:02:54.9]} 9... h6 {[%clk 0:03:05.4]}
10. Bf4 {[%clk 0:02:53.7]} 10... a6 {[%clk 0:03:01.2]} 11. a3 {[%clk 0:02:52.1]}
11... Re8 {[%clk 0:03:01.2]} 12. Qd2 {[%clk 0:02:51.9]} 12... Be6 {[%clk
0:02:52.1]} 13. Rfe1 {[%clk 0:02:50.7]} 13... Rc8 {[%clk 0:02:48.3]} 14. Rad1
{[%clk 0:02:50.2]} 14... Bf8 {[%clk 0:02:38.8]} 15. Ne5 {[%clk 0:02:47.4]} 15...
Nxe5 {[%clk 0:02:39.1]} 16. Bxe5 {[%clk 0:02:46.9]} 16... Nd7 {[%clk 0:02:38.9]}
17. Bd4 {[%clk 0:02:46.7]} 17... Nc5 {[%clk 0:02:38]} 18. Be2 {[%clk 0:02:39.3]}
18... Ne4 {[%clk 0:02:34]} 19. Nxe4 {[%clk 0:02:36]} 19... dxe4 {[%clk
0:02:34.3]} 20. c3 {[%clk 0:02:25.3]} 20... Qh4 {[%clk 0:02:20.6]} 21. Qe3
{[%clk 0:02:17.6]} 21... Be7 {[%clk 0:02:09.3]} 22. Bf1 {[%clk 0:01:56.2]} 22...
f5 {[%clk 0:02:00.8]} 23. Qg3 {[%clk 0:01:20.7]} 23... Qxg3 {[%clk 0:01:58.6]}
24. fxg3 {[%clk 0:01:21.6]} 24... Bb3 {[%clk 0:01:35.5]} 25. Rd2 {[%clk
0:01:15.3]} 25... Bg5 {[%clk 0:01:35.5]} 26. Rf2 {[%clk 0:01:07.3]} 26... g6
{[%clk 0:01:26.8]} 27. Kh2 {[%clk 0:00:55.3]} 27... e3 {[%clk 0:01:21.4]} 28.
Rf3 {[%clk 0:00:50.5]} 28... Bd5 {[%clk 0:01:19.8]} 29. h4 {[%clk 0:00:32.2]}
29... Bxf3 {[%clk 0:01:15.4]} 30. gxf3 {[%clk 0:00:31.6]} 30... e2 {[%clk
0:01:09.1]} 31. Rxe2 {[%clk 0:00:27.1]} 31... Rxe2+ {[%clk 0:01:09]} 32. Bxe2
{[%clk 0:00:28]} 32... Bc1 {[%clk 0:01:07.4]} 33. c4 {[%clk 0:00:18.1]} 33...
Rd8 {[%clk 0:01:04.9]} 34. Bc3 {[%clk 0:00:17.7]} 34... Bd2 {[%clk 0:01:03.6]}
35. Be5 {[%clk 0:00:17.2]} 35... Be3 {[%clk 0:00:59.3]} 36. Kh3 {[%clk
0:00:09.8]} 36... Bd4 {[%clk 0:00:58.5]} 37. Bc7 {[%clk 0:00:07.9]} 37... Rd7
{[%clk 0:00:46.8]} 38. Bf4 {[%clk 0:00:07.2]} 38... Bxb2 {[%clk 0:00:45.5]} 39.
a4 {[%clk 0:00:07.4]} 39... Kg7 {[%clk 0:00:43.8]} 40. g4 {[%clk 0:00:05.8]}
40... fxg4+ {[%clk 0:00:43.2]} 41. fxg4 {[%clk 0:00:05.6]} 41... Re7 {[%clk
0:00:39.8]} 42. Bf3 {[%clk 0:00:05.2]} 42... b6 {[%clk 0:00:32.8]} 43. Bd6
{[%clk 0:00:04.9]} 43... Re3 {[%clk 0:00:31.9]} 44. Kg2 {[%clk 0:00:03.7]} 44...
Bd4 {[%clk 0:00:31]} 45. Bd5 {[%clk 0:00:03.2]} 45... a5 {[%clk 0:00:29.3]} 46.
Bc7 {[%clk 0:00:03.1]} 46... Bc5 {[%clk 0:00:23.6]} 47. Bd8 {[%clk 0:00:03.2]}
47... Ra3 {[%clk 0:00:22.6]} 48. g5 {[%clk 0:00:03.2]} 48... hxg5 {[%clk
0:00:20.5]} 49. hxg5 {[%clk 0:00:03.4]} 49... Rxa4 {[%clk 0:00:21.2]} 50. Bf6+
{[%clk 0:00:03.5]} 50... Kh7 {[%clk 0:00:21.8]} 51. Kf3 {[%clk 0:00:03.6]} 51...
Ra3+ {[%clk 0:00:22.3]} 52. Ke4 {[%clk 0:00:03.1]} 52... Bf8 {[%clk 0:00:21.2]}
53. Bc6 {[%clk 0:00:02.7]} 53... Bg7 {[%clk 0:00:21.2]} 54. Be7 {[%clk
0:00:01.2]} 54... Ra1 {[%clk 0:00:19.6]} 55. Kd5 {[%clk 0:00:01.4]} 55... Rd1+
{[%clk 0:00:19.4]} 56. Ke6 {[%clk 0:00:01.3]} 56... Kg8 {[%clk 0:00:17.6]} 57.
Bd5 {[%clk 0:00:01]} 57... Kh7 {[%clk 0:00:14.5]} 58. Kd7 {[%clk 0:00:01.5]}
58... a4 {[%clk 0:00:13.7]} 59. Ke8 {[%clk 0:00:01.9]} 59... a3 {[%clk 0:00:13]}
0-1

[Event "Late-Titled-Tuesday-Blitz-February-27-2024"]
[Site "Chess.com"]
[Date "2024.02.27"]
[Round "9"]
[White "FabianoCaruana"]
[Black "TanitoluwaAps116"]
[Result "1-0"]
[WhiteElo "3055"]
[BlackElo "2896"]
[TimeControl "180+1"]
[EndTime "15:44:52 PST"]
[Termination "FabianoCaruana won by checkmate"]

1. c4 {[%clk 0:03:00.9]} 1... e5 {[%clk 0:02:52.5]} 2. Nc3 {[%clk 0:03:01]} 2...
Nc6 {[%clk 0:02:52]} 3. g3 {[%clk 0:03:01.2]} 3... g6 {[%clk 0:02:49.8]} 4. Bg2
{[%clk 0:03:01.5]} 4... d6 {[%clk 0:02:49.3]} 5. e4 {[%clk 0:03:01.6]} 5... Be6
{[%clk 0:02:48.3]} 6. d3 {[%clk 0:03:01.1]} 6... h5 {[%clk 0:02:46.5]} 7. h3
{[%clk 0:02:58.8]} 7... h4 {[%clk 0:02:46.6]} 8. g4 {[%clk 0:02:58.9]} 8... f5
{[%clk 0:02:47.2]} 9. exf5 {[%clk 0:02:49.7]} 9... gxf5 {[%clk 0:02:48.1]} 10.
Nf3 {[%clk 0:02:45.8]} 10... fxg4 {[%clk 0:02:32.1]} 11. Ng5 {[%clk 0:02:42.9]}
11... Bd7 {[%clk 0:01:58.1]} 12. Be4 {[%clk 0:02:32.8]} 12... Nge7 {[%clk
0:01:00.4]} 13. hxg4 {[%clk 0:02:18.7]} 13... Bg7 {[%clk 0:00:41.4]} 14. Be3
{[%clk 0:02:16.7]} 14... Nd4 {[%clk 0:00:40.5]} 15. Qd2 {[%clk 0:01:38.3]} 15...
Bxg4 {[%clk 0:00:34.7]} 16. f3 {[%clk 0:01:36.3]} 16... Bh5 {[%clk 0:00:28.8]}
17. O-O-O {[%clk 0:01:30.3]} 17... Qd7 {[%clk 0:00:19]} 18. Rxh4 {[%clk
0:01:03.6]} 18... O-O-O {[%clk 0:00:17.2]} 19. Bxd4 {[%clk 0:00:47.3]} 19...
exd4 {[%clk 0:00:17.7]} 20. Nd5 {[%clk 0:00:46.7]} 20... Rdf8 {[%clk 0:00:05.6]}
21. Nh7 {[%clk 0:00:22.8]} 21... Rxh7 {[%clk 0:00:04.3]} 22. Bxh7 {[%clk
0:00:23.2]} 22... Nxd5 {[%clk 0:00:04.5]} 23. cxd5 {[%clk 0:00:22.9]} 23... Bxf3
{[%clk 0:00:05]} 24. Rf1 {[%clk 0:00:18.8]} 24... Bxd5 {[%clk 0:00:04.9]} 25.
Rxf8+ {[%clk 0:00:17.8]} 25... Bxf8 {[%clk 0:00:05.8]} 26. Qf4 {[%clk
0:00:16.4]} 26... Qe7 {[%clk 0:00:03.8]} 27. Be4 {[%clk 0:00:06.9]} 27... Bxe4
{[%clk 0:00:03.5]} 28. Qxe4 {[%clk 0:00:07.8]} 28... c6 {[%clk 0:00:03.4]} 29.
Qxe7 {[%clk 0:00:06]} 29... Bxe7 {[%clk 0:00:04.3]} 30. Rxd4 {[%clk 0:00:06.2]}
30... Kc7 {[%clk 0:00:04.2]} 31. Rg4 {[%clk 0:00:06.4]} 31... Bf6 {[%clk
0:00:04.3]} 32. Kc2 {[%clk 0:00:07]} 32... b5 {[%clk 0:00:04.1]} 33. d4 {[%clk
0:00:07.3]} 33... Kb6 {[%clk 0:00:04]} 34. b3 {[%clk 0:00:07.2]} 34... a5 {[%clk
0:00:04.4]} 35. Kd3 {[%clk 0:00:07.4]} 35... d5 {[%clk 0:00:04.5]} 36. Rg6
{[%clk 0:00:07.3]} 36... Be7 {[%clk 0:00:04.8]} 37. Ke3 {[%clk 0:00:07.6]} 37...
Ba3 {[%clk 0:00:01.9]} 38. Kf4 {[%clk 0:00:07.7]} 38... Bb2 {[%clk 0:00:02.5]}
39. Ke5 {[%clk 0:00:07.9]} 39... a4 {[%clk 0:00:03.1]} 40. Rg2 {[%clk
0:00:05.4]} 40... a3 {[%clk 0:00:02.9]} 41. Rg4 {[%clk 0:00:04.4]} 41... c5
{[%clk 0:00:02.6]} 42. Kxd5 {[%clk 0:00:04.6]} 42... Bxd4 {[%clk 0:00:03.3]} 43.
b4 {[%clk 0:00:04.4]} 43... Be3 {[%clk 0:00:02.4]} 44. Rg6+ {[%clk 0:00:04.5]}
44... Kc7 {[%clk 0:00:02.6]} 45. bxc5 {[%clk 0:00:05.2]} 45... b4 {[%clk
0:00:03.2]} 46. Kc4 {[%clk 0:00:05.7]} 46... Bd2 {[%clk 0:00:03.2]} 47. Rb6
{[%clk 0:00:04.6]} 47... Bc3 {[%clk 0:00:03.3]} 48. Rxb4 {[%clk 0:00:04.4]}
48... Bxb4 {[%clk 0:00:03.5]} 49. Kxb4 {[%clk 0:00:05.3]} 49... Kc6 {[%clk
0:00:04.2]} 50. Kc4 {[%clk 0:00:06]} 50... Kb7 {[%clk 0:00:04.4]} 51. Kb5 {[%clk
0:00:06.7]} 51... Kc7 {[%clk 0:00:05.3]} 52. Kc4 {[%clk 0:00:06]} 52... Kc6
{[%clk 0:00:05.8]} 53. Kd4 {[%clk 0:00:06.6]} 53... Kd7 {[%clk 0:00:05.7]} 54.
Kd5 {[%clk 0:00:07.5]} 54... Kc7 {[%clk 0:00:06.2]} 55. Ke4 {[%clk 0:00:07.6]}
55... Kc6 {[%clk 0:00:06.5]} 56. Kd4 {[%clk 0:00:08.5]} 56... Kd7 {[%clk
0:00:07.1]} 57. Kc3 {[%clk 0:00:09]} 57... Kc6 {[%clk 0:00:07.4]} 58. Kc4 {[%clk
0:00:09.4]} 58... Kc7 {[%clk 0:00:07.9]} 59. Kc3 {[%clk 0:00:09.6]} 59... Kc6
{[%clk 0:00:08.4]} 60. Kb4 {[%clk 0:00:10.2]} 60... Kb7 {[%clk 0:00:08.8]} 61.
Kxa3 {[%clk 0:00:10.6]} 61... Kc6 {[%clk 0:00:07.1]} 62. Kb4 {[%clk 0:00:11.5]}
62... Kc7 {[%clk 0:00:07.8]} 63. Kb5 {[%clk 0:00:12.3]} 63... Kb7 {[%clk
0:00:08.7]} 64. c6+ {[%clk 0:00:13]} 64... Kc7 {[%clk 0:00:09.2]} 65. Kc5 {[%clk
0:00:13.6]} 65... Kc8 {[%clk 0:00:10.1]} 66. Kd6 {[%clk 0:00:13.9]} 66... Kd8
{[%clk 0:00:10.1]} 67. c7+ {[%clk 0:00:14.5]} 67... Kc8 {[%clk 0:00:10.8]} 68.
a4 {[%clk 0:00:15.1]} 68... Kb7 {[%clk 0:00:11.6]} 69. Kd7 {[%clk 0:00:15.7]}
69... Kb6 {[%clk 0:00:12.5]} 70. c8=Q {[%clk 0:00:16]} 70... Ka5 {[%clk
0:00:13.4]} 71. Qc4 {[%clk 0:00:15.5]} 71... Kb6 {[%clk 0:00:13.8]} 72. Qb5+
{[%clk 0:00:15.9]} 72... Ka7 {[%clk 0:00:14.3]} 73. Kc8 {[%clk 0:00:16.6]} 73...
Ka8 {[%clk 0:00:14.5]} 74. Qa6# {[%clk 0:00:17.3]} 1-0

[Event "Late-Titled-Tuesday-Blitz-February-27-2024"]
[Site "Chess.com"]
[Date "2024.02.27"]
[Round "9"]
[White "mishanick"]
[Black "temus_galaktionov"]
[Result "1-0"]
[WhiteElo "3066"]
[BlackElo "2911"]
[TimeControl "180+1"]
[EndTime "15:44:53 PST"]
[Termination "mishanick won on time"]

1. d4 {[%clk 0:03:00.9]} 1... c6 {[%clk 0:02:59.7]} 2. c4 {[%clk 0:03:00.4]}
2... g6 {[%clk 0:02:59.4]} 3. Nf3 {[%clk 0:03:01.3]} 3... Bg7 {[%clk 0:02:59.1]}
4. Nc3 {[%clk 0:03:02.1]} 4... d6 {[%clk 0:02:59.3]} 5. e4 {[%clk 0:03:01.8]}
5... Nd7 {[%clk 0:02:59.4]} 6. Be2 {[%clk 0:03:00.8]} 6... e5 {[%clk 0:02:59.4]}
7. d5 {[%clk 0:03:01.2]} 7... c5 {[%clk 0:02:59.2]} 8. Be3 {[%clk 0:03:00.4]}
8... Ngf6 {[%clk 0:02:59.2]} 9. Nd2 {[%clk 0:03:00.3]} 9... a6 {[%clk
0:02:57.9]} 10. a3 {[%clk 0:03:00]} 10... O-O {[%clk 0:02:55.2]} 11. b4 {[%clk
0:03:00.5]} 11... b6 {[%clk 0:02:55.4]} 12. h4 {[%clk 0:02:59.5]} 12... h5
{[%clk 0:02:49.5]} 13. f3 {[%clk 0:02:41.9]} 13... Nh7 {[%clk 0:02:43.2]} 14. g4
{[%clk 0:02:41.5]} 14... Bf6 {[%clk 0:02:39.8]} 15. Bf2 {[%clk 0:02:34.5]} 15...
Be7 {[%clk 0:02:37.1]} 16. Nf1 {[%clk 0:02:23]} 16... Ndf6 {[%clk 0:02:34.4]}
17. Ne3 {[%clk 0:02:16.7]} 17... Kh8 {[%clk 0:02:29.6]} 18. Kd2 {[%clk 0:02:06]}
18... Bd7 {[%clk 0:02:28.6]} 19. Qb3 {[%clk 0:02:04.7]} 19... Qc8 {[%clk
0:02:26.5]} 20. Rhg1 {[%clk 0:02:03]} 20... Rb8 {[%clk 0:02:20.8]} 21. Rab1
{[%clk 0:02:01.8]} 21... Qc7 {[%clk 0:02:20.7]} 22. Rb2 {[%clk 0:01:46]} 22...
Rfc8 {[%clk 0:02:12.1]} 23. Rc2 {[%clk 0:01:34.9]} 23... Qd8 {[%clk 0:02:04.7]}
24. Bg3 {[%clk 0:01:27.5]} 24... b5 {[%clk 0:01:44.2]} 25. g5 {[%clk 0:01:26.9]}
25... Ne8 {[%clk 0:01:42.4]} 26. cxb5 {[%clk 0:01:12.9]} 26... axb5 {[%clk
0:01:43.3]} 27. bxc5 {[%clk 0:01:08.8]} 27... Rxc5 {[%clk 0:01:44.2]} 28. Na2
{[%clk 0:01:06.6]} 28... f6 {[%clk 0:01:22.5]} 29. gxf6 {[%clk 0:01:04.9]} 29...
Bxf6 {[%clk 0:01:22.4]} 30. Nb4 {[%clk 0:00:52.1]} 30... Rxc2+ {[%clk
0:01:14.4]} 31. Nexc2 {[%clk 0:00:42.6]} 31... Bxh4 {[%clk 0:01:06.2]} 32. Bxh4
{[%clk 0:00:42.4]} 32... Qxh4 {[%clk 0:01:05.9]} 33. Rxg6 {[%clk 0:00:43.1]}
33... Nef6 {[%clk 0:01:00.5]} 34. Nc6 {[%clk 0:00:40]} 34... Rg8 {[%clk
0:00:59.8]} 35. Rxg8+ {[%clk 0:00:38.5]} 35... Nxg8 {[%clk 0:00:56.7]} 36. Qe3
{[%clk 0:00:29.1]} 36... Qg3 {[%clk 0:00:52.9]} 37. Bxb5 {[%clk 0:00:12.2]}
37... h4 {[%clk 0:00:50.9]} 38. Ke2 {[%clk 0:00:11.8]} 38... h3 {[%clk
0:00:35.5]} 39. Qf2 {[%clk 0:00:12.3]} 39... Qf4 {[%clk 0:00:35.5]} 40. Ne3
{[%clk 0:00:08.2]} 40... Ng5 {[%clk 0:00:34.5]} 41. Nf1 {[%clk 0:00:07.3]} 41...
Nxf3 {[%clk 0:00:30]} 42. Bd3 {[%clk 0:00:01.8]} 42... Bg4 {[%clk 0:00:29.1]}
43. Qg3 {[%clk 0:00:02.1]} 43... Nd4+ {[%clk 0:00:13]} 44. Ke1 {[%clk
0:00:02.2]} 44... Qxg3+ {[%clk 0:00:12.4]} 45. Nxg3 {[%clk 0:00:03.1]} 45... h2
{[%clk 0:00:11.8]} 46. Nxd4 {[%clk 0:00:01.8]} 46... exd4 {[%clk 0:00:11.8]} 47.
Kf2 {[%clk 0:00:02.6]} 47... Ne7 {[%clk 0:00:10]} 48. a4 {[%clk 0:00:02.9]}
48... Bh3 {[%clk 0:00:05.5]} 49. a5 {[%clk 0:00:03]} 49... Nc8 {[%clk
0:00:05.9]} 50. a6 {[%clk 0:00:03.4]} 50... Kg7 {[%clk 0:00:05.3]} 51. e5 {[%clk
0:00:02.8]} 51... dxe5 {[%clk 0:00:04.5]} 52. d6 {[%clk 0:00:02.6]} 52... Kf6
{[%clk 0:00:04.6]} 53. Be4 {[%clk 0:00:01.4]} 53... Ke6 {[%clk 0:00:02.4]} 54.
Bb7 {[%clk 0:00:01.3]} 54... Na7 {[%clk 0:00:02.5]} 55. Ne4 {[%clk 0:00:01.4]}
1-0